Cogmind - Beta 14 @@@ ROGUE MODE // 2024.12.27 @ 22:17:34 Player: Derk Result: Self-destructed Performance ------------- Evolutions (1) 500 Regions Visited (5) 1000 Robots Destroyed (26) 130 Value Destroyed (571) 571 Prototype IDs (0) 0 Alien Tech Used (0) 0 Bonus (-30) -30 TOTAL SCORE: 2171 Bonus ------- Friendly Fire -30 Cogmind --------- Core Integrity 185/400 Matter 280/300 Energy 100/100 System Corruption 11% Temperature Cool (5) Movement Rolling (135) Ox3 Location -9/Exiles Parts ------- > --- POWER (1) -------- (None) > --- PROPULSION (2) --- Armored Wheel Armored Wheel > --- UTILITY (4) ------ Huge Storage Unit Targeting Computer > --- WEAPON (2) ------- Light Assault Rifle Shotgun > --- INVENTORY (25) --- Light Ion Engine Nuclear Core Reinforced Deuterium Engine Light Treads Light Treads Wheel Armored Wheel Armored Wheel High-capacity Battery (250) High-capacity Matter Pod (100) Trap Scanner Seismic Detector Hacking Suite Beam Rifle Particle Cannon Shotgun Grenade Launcher Datajack Heavy Flail Peak State ------------ > --- POWER ------------ Improved Ion Engine > --- PROPULSION ------- Armored Wheel Armored Wheel > --- UTILITY ---------- Improved Heat Sink Huge Storage Unit Targeting Computer Medium Armor Plating > --- WEAPON ----------- Shotgun Shotgun > --- INVENTORY -------- Light Ion Engine Light Nuclear Core Light Treads Light Treads Wheel Armored Wheel Armored Wheel High-capacity Battery Medium Matter Pod Trap Scanner Seismic Detector Light Armor Plating Hacking Suite Beam Rifle Particle Gun Particle Cannon Grenade Launcher Datajack Heavy Flail [Rating: 20] Favorites ----------- Power Ion Engine Engine Ion Engine Power Core Light Nuclear Core Propulsion Compact Wheel Treads Light Treads Wheel Compact Wheel Utility Huge Storage Unit Device Seismic Detector Storage Huge Storage Unit Processor Targeting Computer Protection Light Armor Plating Weapon Shotgun Energy Gun Medium Laser Energy Cannon Particle Cannon Ballistic Gun Shotgun Launcher Grenade Launcher Impact Weapon Heavy Flail Slashing Weapon Mining Claw Build | -11 -10 -10 -9 -9 -9 ------- Run | Yrd Mat Min Mat Min Exi Slots Evolved 2 | . . . 2 . . Power . | . . . . . . Propulsion . | . . . . . . Utility 2 | . . . 2 . . Weapon . | . . . . . . Parts Attached 44 | 8 6 2 17 10 1 Power 4 | 1 1 . 1 1 . Engine 3 | 1 1 . 1 . . Core 1 | . . . . 1 . Reactor . | . . . . . . Propulsion 10 | 2 . . 8 . . Treads 2 | . . . 2 . . Leg . | . . . . . . Wheel 8 | 2 . . 6 . . Hover . | . . . . . . Flight . | . . . . . . Utility 12 | 2 1 1 4 4 . Device 5 | 1 . . 2 2 . Storage 3 | 1 1 . . 1 . Processor 2 | . . 1 1 . . Hackware . | . . . . . . Protection 2 | . . . 1 1 . Artifact . | . . . . . . Weapon 18 | 3 4 1 4 5 1 Energy Gun 4 | 2 1 . . 1 . Energy Cannon 1 | . . . . 1 . Ballistic Gun 9 | 1 2 . 3 2 1 Ballistic Cannon . | . . . . . . Launcher 1 | . . 1 . . . Special Weapon . | . . . . . . Impact Weapon 1 | . . . . 1 . Slashing Weapon 2 | . 1 . 1 . . Piercing Weapon . | . . . . . . Special Melee Weapon . | . . . . . . Unidentified Prototypes . | . . . . . . Parts Lost 8 | . 1 . 1 3 3 Power 2 | . 1 . . . 1 Propulsion . | . . . . . . Utility 5 | . . . . 3 2 Weapon 1 | . . . 1 . . Highest Loss Streak 3 | . 1 . 1 3 3 To Critical Strikes . | . . . . . . Average Slot Usage (%) 98 | . 99 100 96 99 100 Engine 9 | . 13 14 11 4 . Core 2 | . . . . 6 11 Wheel 24 | . 28 28 21 22 22 Device 9 | . 14 3 6 10 11 Storage 12 | . 14 14 11 11 11 Processor 10 | . . 10 20 11 11 Protection 4 | . . . 3 11 11 Energy Gun 3 | . 12 . . . . Ballistic Gun 16 | . 14 14 20 15 22 Launcher 1 | . . 12 . . . Peak Build Rating 20 | 7 9 9 19 20 18 Average Rating 12 | 4 7 9 14 17 17 On Entrance 10 | . 7 9 9 18 17 Naked Turns . | . . . . . . Heaviest Build 100 | 13 89 90 100 98 95 Greatest Support 32 | 32 32 32 32 24 24 Greatest Overweight (x) 4 | . 2 2 4 4 3 Average Overweight (x) 2 | . 1 2 3 3 3 Largest Inventory Capacity 25 | 8 25 25 25 25 25 Average Capacity 23 | 7 22 25 25 25 25 Most Carried 25 | 8 20 20 25 20 20 Average Carried 16 | 4 10 20 20 17 18 Final Capacity 25 | 8 25 25 25 25 25 Final Carried 20 | 8 20 20 20 17 19 Class Distribution -------------------- 100% | Mutant Dominant Class ---------------- Mutant | -10/Materials Mutant | -10/Mines Mutant | -9/Materials Mutant | -9/Mines Mutant | -9/Exiles Resources | -11 -10 -10 -9 -9 -9 ----------- Run | Yrd Mat Min Mat Min Exi Matter Collected 1115 | 289 230 31 218 347 . Remotely . | . . . . . . Salvage Created 796 | 85 299 . 218 194 . Parts 54 | 6 27 . 14 7 . Haulers Intercepted . | . . . . . . Recyclers Shooed . | . . . . . . Parts Field Recycled . | . . . . . . Retrieved Matter . | . . . . . . Parts Self-Destructed . | . . . . . . Prevented . | . . . . . . Kills | -11 -10 -10 -9 -9 -9 ------- Run | Yrd Mat Min Mat Min Exi Combat Hostiles Destroyed 18 | . 8 . 5 5 . Guns 16 | . 7 . 5 4 . Classes Destroyed 10 | 2 4 . 1 3 . Worker 1 | . . . . 1 . Tunneler 2 | 1 1 . . . . Recycler 2 | 1 1 . . . . Operator 1 | . 1 . . . . Watcher 2 | . 1 . 1 . . Swarmer 7 | . 6 . . 1 . Grunt 8 | . 2 . 4 2 . Brawler 1 | . . . . 1 . Duelist 1 | . . . . 1 . Sentry 1 | . . . 1 . . Best Kill Streak 4 | 2 4 . 3 2 . Combat Bots Only 3 | . 3 . 3 2 . Max Kills in Single Turn 1 | 1 1 . 1 1 . Gunslinging . | . . . . . . Exploded . | . . . . . . Melee . | . . . . . . Uniques/NPCs Destroyed . | . . . . . . Combat | -11 -10 -10 -9 -9 -9 -------- Run | Yrd Mat Min Mat Min Exi Hostile Shots Fired 135 | . 43 1 30 36 25 Missed 32 | . 11 1 8 5 7 Damage Taken 1367 | . 311 . 258 502 296 Core 293 | . 78 . 15 100 100 Absorbed by Shields . | . . . . . . Core Remaining (%) 84 | 100 . 68 . . . Volleys Fired 79 | 3 37 1 15 18 5 Largest 2 | 2 2 1 2 2 2 Hottest 133 | 70 70 20 46 133 43 Shots Fired 158 | 6 74 1 28 39 10 Gun 148 | 6 74 1 28 29 10 Cannon 10 | . . . . 10 . Launcher . | . . . . . . Special . | . . . . . . Kinetic 100 | 3 37 1 28 21 10 Thermal 58 | 3 37 . . 18 . Explosive . | . . . . . . Electromagnetic . | . . . . . . Robot Hit Streak 17 | 2 13 1 10 17 3 Robot Miss Streak 4 | 1 3 . 2 4 2 Penetration Max . | . . . . . . Secondary Targets 3 | . 2 . . 1 . Max Gunslinging Chain 1 | . 1 . . 1 . Shots Hit Robots 112 | 3 42 1 23 34 9 Core Hits 43 | 2 16 . 14 9 2 Critical Kills 1 | . . . . 1 . Critical Parts Destroyed . | . . . . . . Critical Strikes 4 | 1 2 . . 1 . Burn 3 | 1 2 . . . . Destroy 1 | . . . . 1 . Melee Attacks 12 | . 7 . 2 3 . Impact 3 | . . . . 3 . Slashing 9 | . 7 . 2 . . Piercing . | . . . . . . Sneak Attacks 2 | . 1 . . 1 . Combat Hostiles . | . . . . . . Follow-up Attacks . | . . . . . . Damage Inflicted 1654 | 38 518 7 341 652 98 Guns 1352 | 38 455 7 341 413 98 Cannons 122 | . . . . 122 . Explosions . | . . . . . . Melee 180 | . 63 . . 117 . Ramming . | . . . . . . Kinetic 954 | 26 189 7 341 293 98 Thermal 520 | 12 266 . . 242 . Explosive . | . . . . . . Electromagnetic . | . . . . . . Impact 117 | . . . . 117 . Slashing 63 | . 63 . . . . Piercing . | . . . . . . Highest Corruption 11 | . 1 1 1 8 11 Average Corruption 4 | . 1 1 1 7 8 Corruption Purged . | . . . . . . Corruption Blocked . | . . . . . . Effects 30 | . 2 2 2 23 1 Message Errors 10 | . 1 1 1 6 1 Matter Fused 8 | . . 1 . 7 . Heat Flow Errors 2 | . . . . 2 . Energy Discharges 3 | . . . 1 2 . Data Loss (minor) 1 | . . . . 1 . Data Loss (major) 3 | . 1 . . 2 . Misfires 3 | . . . . 3 . Overload Shots . | . . . . . . Overflow Damage 64 | . . . . 64 . Projectiles . | . . . . . . Explosions . | . . . . . . Melee 64 | . . . . 64 . Knockbacks 1 | . . . . 1 . Impact 1 | . . . . 1 . Kinetic . | . . . . . . Secondary . | . . . . . . Self-Inflicted Damage . | . . . . . . Shots . | . . . . . . Rammed . | . . . . . . Targets Rammed . | . . . . . . Kicked . | . . . . . . Crushed . | . . . . . . Highest Temperature 282 | 18 110 . 35 282 20 Average Temperature 51 | 9 37 . 16 108 14 Received Heat Transfer 420 | . 90 . 138 132 60 Effects 1 | . . . . 1 . Energy Bleed 1 | . . . . 1 . Siege Activations . | . . . . . . Robots Corrupted 1 | . . . . 1 . Combat Hostiles 1 | . . . . 1 . Parts Fried . | . . . . . . Impact Corruptions 2 | . . . . 2 . Robots Melted 1 | . 1 . . . . Combat Hostiles 1 | . 1 . . . . Parts Melted 6 | . 4 . . 2 . Heat Transferred 1554 | 111 925 . . 518 . Parts Sabotaged . | . . . . . . Parts Stolen . | . . . . . . Parts Stripped . | . . . . . . Power Chain Reactions . | . . . . . . Alert | -11 -10 -10 -9 -9 -9 ------- Run | Yrd Mat Min Mat Min Exi Peak Influence 286 | 10 286 72 135 136 . Initial 72 | . 6 72 27 51 . Average 95 | 2 135 72 107 64 . Maximum Alert Level 1 | . 1 . . . . Low Security (%) 94 | 100 81 100 100 100 . Level 1 5 | . 18 . . . . Level 2 . | . . . . . . Level 3 . | . . . . . . Level 4 . | . . . . . . Level 5 . | . . . . . . High Security . | . . . . . . Max Security . | . . . . . . Squads Dispatched 2 | . 1 . 1 . . Investigation 1 | . . . 1 . . Extermination . | . . . . . . Reinforcement 1 | . 1 . . . . Assault . | . . . . . . Garrison . | . . . . . . Intercept . | . . . . . . Searches Triggered . | . . . . . . Construction Impeded . | . . . . . . Haulers Reinforced . | . . . . . . Active Scanning Responses . | . . . . . . Cargo Convoy Interrupts . | . . . . . . Stealth | -11 -10 -10 -9 -9 -9 --------- Run | Yrd Mat Min Mat Min Exi Distress Signals 4 | . 4 . . . . Communications Jammed . | . . . . . . Distress Signals . | . . . . . . Times Spotted 40 | . 19 1 8 5 7 Peak Tracking Total 9 | . 4 2 4 2 9 Tactical Retreats 3 | . 3 . . . . Traps | -11 -10 -10 -9 -9 -9 ------- Run | Yrd Mat Min Mat Min Exi Traps Triggered 4 | . 2 . 2 . . Indirectly . | . . . . . . Trap Hack Attempts . | . . . . . . Triggered . | . . . . . . Disarmed . | . . . . . . Reprogrammed . | . . . . . . Reused . | . . . . . . Traps Extracted . | . . . . . . Installed . | . . . . . . Triggered . | . . . . . . Machines | -11 -10 -10 -9 -9 -9 ---------- Run | Yrd Mat Min Mat Min Exi Machines Disabled . | . . . . . . Max in Single Turn . | . . . . . . Machines Repaired . | . . . . . . Machines Dismantled . | . . . . . . Machines Sabotaged . | . . . . . . Overloaded Fab Kills . | . . . . . . Hacking | -11 -10 -10 -9 -9 -9 --------- Run | Yrd Mat Min Mat Min Exi Machines Accessed 7 | . 3 . 4 . . Terminals 6 | . 3 . 3 . . Fabricators . | . . . . . . Repair Stations . | . . . . . . Recycling Units 1 | . . . 1 . . Scanalyzers . | . . . . . . Garrison Access . | . . . . . . Total Hacks 29 | . 15 . 14 . . Successful 17 | . 10 . 7 . . Failed 12 | . 5 . 7 . . Catastrophic 1 | . 1 . . . . Database Lockouts . | . . . . . . Manual 22 | . 11 . 11 . . Terminals 28 | . 15 . 13 . . Fabricators . | . . . . . . Repair Stations . | . . . . . . Recycling Units 1 | . . . 1 . . Scanalyzers . | . . . . . . Garrison Access . | . . . . . . Terminal Hacks 9 | . 6 . 3 . . Robot Analysis 1 | . 1 . . . . Branch Access Points 1 | . . . 1 . . Terminal Index 1 | . 1 . . . . Alert Level 1 | . 1 . . . . Locate Traps 1 | . 1 . . . . Registered Components 1 | . 1 . . . . Zone Layout 3 | . 1 . 2 . . Fabricator Hacks . | . . . . . . Repair Station Hacks . | . . . . . . Recycling Unit Hacks . | . . . . . . Scanalyzer . | . . . . . . Garrison Access Hacks . | . . . . . . Unauthorized Hacks 8 | . 4 . 4 . . Terminals 7 | . 4 . 3 . . Track 2 | . 1 . 1 . . Assimilate 1 | . 1 . . . . Botnet 2 | . 1 . 1 . . Operators 2 | . 1 . 1 . . Fabricators . | . . . . . . Repair Stations . | . . . . . . Recycling Units 1 | . . . 1 . . Tunnel 1 | . . . 1 . . Scanalyzers . | . . . . . . Garrison Access . | . . . . . . Data Cores Recovered . | . . . . . . Used . | . . . . . . Hacking Detections 6 | . 3 . 3 . . Full Trace Events 1 | . . . 1 . . Feedback Events . | . . . . . . Feedback Blocked . | . . . . . . Robot Schematics Acquired . | . . . . . . Robots Built . | . . . . . . Authchips . | . . . . . . Time . | . . . . . . Total Robot Build Rating . | . . . . . . Part Schematics Acquired . | . . . . . . Parts Built . | . . . . . . Authchips . | . . . . . . Time . | . . . . . . Total Part Build Rating . | . . . . . . Parts Repaired . | . . . . . . Time . | . . . . . . Parts Recycled . | . . . . . . Recycled Matter . | . . . . . . Retrieved Matter . | . . . . . . Retrieved Components . | . . . . . . Parts Scanalyzed . | . . . . . . Part Schematics Acquired . | . . . . . . Parts Damaged . | . . . . . . Bothacking | -11 -10 -10 -9 -9 -9 ------------ Run | Yrd Mat Min Mat Min Exi Used RIF Installer . | . . . . . . Robots Hacked . | . . . . . . Non-combat . | . . . . . . Combat . | . . . . . . Robot Hacks Applied . | . . . . . . Relay Couplers Released . | . . . . . . Fabnet Peak Effective % . | . . . . . . Robots Rewired . | . . . . . . Allies Hacked . | . . . . . . Hacks Repelled . | . . . . . . Allies | -11 -10 -10 -9 -9 -9 -------- Run | Yrd Mat Min Mat Min Exi Total Allies 3 | . . . . 3 . Largest Group 3 | . . . . 3 3 Highest-Rated Group 40 | . . . . 40 40 Highest-Rated Ally 16 | . . . . 16 16 Total Orders . | . . . . . . Ally Attacks 1 | . . . . . 1 Total Damage 1 | . . . . . 1 Kills . | . . . . . . Allies Corrupted . | . . . . . . Allies Melted . | . . . . . . Intel | -11 -10 -10 -9 -9 -9 ------- Run | Yrd Mat Min Mat Min Exi Robot Analysis Total 1 | . 1 . . . . Derelict Logs Recovered 3 | . . 1 . 2 . Drone Launches . | . . . . . . Drone Recoveries . | . . . . . . Exploration | -11 -10 -10 -9 -9 -9 ------------- Run | Yrd Mat Min Mat Min Exi Turns Passed 2627 | 68 714 306 733 719 87 Spaces Moved 1517 | 41 379 154 448 445 50 Core 2 | 2 . . . . . Treads . | . . . . . . Legs . | . . . . . . Wheels 1515 | 39 379 154 448 445 50 Hover . | . . . . . . Flight . | . . . . . . Fastest Speed 50 | 50 100 130 130 135 135 Average Speed 134 | 97 123 130 141 140 135 Slowest Speed 150 | 100 130 130 150 150 135 Overloaded Moves . | . . . . . . Propulsion Burnouts . | . . . . . . Robots Hopped . | . . . . . . Cave-ins Triggered . | . . . . . . Exploration Rate (%) 35 | 3 56 25 34 82 12 Regions Visited 5 Branch Regions 3 Pre-discovered Areas 2 | . . . 1 1 . Known Exits Taken 1 | . . . 1 . . Unknown Exits Taken 4 | 1 1 1 . 1 . Scrap Searched 2 | . . . . 2 . Spaces Dug 6 | . 5 . 1 . . Terrain Destroyed 7 | . 5 . 1 1 . Melee 6 | . 5 . 1 . . Projectile 1 | . . . . 1 . AOE . | . . . . . . Terrain Rammed . | . . . . . . Walls Destroyed . | . . . . . . Machines Disabled . | . . . . . . Actions | -11 -10 -10 -9 -9 -9 --------- Run | Yrd Mat Min Mat Min Exi Total 1935 | 61 538 258 520 498 60 Wait 216 | . 92 102 4 18 . Move 1512 | 40 378 153 447 444 50 Hop . | . . . . . . Pick Up 45 | 9 14 . 17 2 3 Fast Attach 13 | 7 3 . 2 1 . Attach 7 | . . . 2 5 . Detach 1 | . . . . 1 . Swap 24 | 1 3 2 13 4 1 Drop 26 | 1 4 . 18 2 1 Fire 79 | 3 37 1 15 18 5 Melee 12 | . 7 . 2 3 . Ram . | . . . . . . Kick . | . . . . . . Crush . | . . . . . . Escape Stasis . | . . . . . . Rewire . | . . . . . . Trap . | . . . . . . Miscellaneous . | . . . . . . Route ------- -11/Scrapyard -10/Materials (discovered 3 exits: *Mat / [*Min x2]) -10/Mines -9/Materials (discovered 3 exits: [*Mat] / *Min x2) -9/Mines (discovered 3 exits: [*Mat] / [*Exi] / [*Zio]) -9/Exiles History --------- Turn | Location | Event 25 | -11/Scrapyard | Discovered new exit (range 15) 69 | -11/Scrapyard | Entered Materials 82 | -10/Materials | Discovered new exit (range 16) 309 | -10/Materials | Build established: Mutant 535 | -10/Materials | Discovered new exit (range 5) 616 | -10/Materials | Discovered new exit (range 15) 783 | -10/Materials | Entered Mines 783 | -10/Mines | Discovered new exit (range 12) 938 | -10/Mines | Assembled infested the area 1089 | -10/Mines | Entered Materials 1089 | -9/Materials | Evolved 2 slots: Utility x2 1282 | -9/Materials | Identified exit to Mines 1644 | -9/Materials | Discovered new exit (range 16) 1822 | -9/Materials | Entered Mines 1856 | -9/Mines | Discovered new exit (range 9) 1863 | -9/Mines | Lost 3 parts (3u) 1905 | -9/Mines | Learned location of Zion (-7) 2004 | -9/Mines | A Derelict revealed a hidden shortcut to a safe place 2046 | -9/Mines | Learned Materials trap positions 2203 | -9/Mines | Deemed a non-threat by the Exiles lab entrance 2203 | -9/Mines | Discovered new exit (range 5) 2459 | -9/Mines | Assisted by bots powering up and referring to "LRC-V3" 2541 | -9/Mines | Entered Exiles 2541 | -9/Exiles | Accompanied by 3 allies 2582 | -9/Exiles | Met 8R-AWN 2615 | -9/Exiles | Attacked by the Exiles 2626 | -9/Exiles | Core integrity fell below 50% 2627 | -9/Exiles | System corruption reached 10% 2628 | -9/Exiles | Self-destructed Last Messages --------------- 02620_ HV Slug penetrates Wall. 02620_ Penetrated by HV Slug. 02620_ HV Slug penetrates Wall. 02622_ HV Slug penetrates as-47427. 02622_ as-47427 suffers critical hit (Destroy). 02622_ HV Slug penetrates as-84068. 02622_ Penetrated by HV Slug. 02622_ HV Slug penetrates Earth. 02624_ Penetrated by HV Slug. 02624_ HV Slug penetrates as-60498. 02624_ as-60498 suffers critical hit (Destroy). 02624_ HV Slug penetrates as-47427. 02624_ as-47427 suffers critical hit (Destroy). 02624_ HV Slug penetrates as-84068. 02624_ as-84068 destroyed. 02626_ Lgt. Nuclear Core destroyed. 02626_ System corrupted by crushing effect (+3). 02626_ HV Slug penetrates Wall. 02626_ Penetrated by HV Slug. 02626_ HV Slug penetrates as-60498. Map ----- +----------------------------------------------------+ | ?????????????????????????????????????????????????? | | ?????????????????????????????????????????????????? | | ?????????????????????????????????????????????????? | | ?????????????????????????????????????????????????? | | ?????????????????????????????????????????????????? | | ?????????????????????????????????????????????????? | | ?????????????????????????????????????????????????? | | ?????????????????????????????????????????????????? | | ?????????????????????????????????????????????????? | | ?????????????????????????????????????????????????? | | ?????????????????????????????????????????????????? | | ?????????????????????????????????????????????????? | | ?????????????????????????????????????????????????? | | ?????????????????????????????????????????????????? | | ?????????????????????????????????????????????????? | | ??????????????????????????????????????????????? ? | | ??????????????????????????????????????????????? | | ??????????????????????????????????????????????? | | ??????????????????????????????????????????????# | | ????????????????????????????????????????????## | | ????????????????????????????????????????????# | | ????????????????????????#####???????????????# | | ???????????????????????##"* #??????????????## | | ???????????????????????#" g #?????????????## # | | ??????????????????????##" ##????????????# # | | ????????????????????### @%[ ###????????### #? | | ????????????????????# aaa!=* ########## #? | | ???????????????????## a %= #""""## #?? | | ???????????????????# a !%[ ##? | | ???????????? ##= #? | | ?????????? #?## ## | | ??????????? "??#"""""#### # | | ??????????? #" #??#######??#### | | ???????????? % ###;#???????????????##### | | ???????????? #?? ????????????????????### | | ???????????? #??? #??????????????????????### | | ????????????? "????##?????????????????????????### | | ???????????????????????????????????????????????#" | | ???????????????????????????????????????????????### | | ?????????????????????????????????????????????????? | | ?????????????????????????????????????????????????? | | ?????????????????????????????????????????????????? | | ?????????????????????????????????????????????????? | | ?????????????????????????????????????????????????? | | ?????????????????????????????????????????????????? | | ?????????????????????????????????????????????????? | | ?????????????????????????????????????????????????? | | ?????????????????????????????????????????????????? | | ?????????????????????????????????????????????????? | | ?????????????????????????????????????????????????? | +----------------------------------------------------+ Best States ------------- Heat Dissipation 42 Energy Generation 14 Energy Capacity 265 Matter Stores 316 Matter Capacity 400 Sight Range 16 Terrain Scan Range 14 Terrain Scan Density 10 Armor Coverage 225 Evasion (%) 40 Targeting Accuracy 10 Recoil Reduction 2 Item Schematics ----------------- None Robot Schematics ------------------ None Fabricated ------------ Nothing Alien Tech Used ----------------- None Achievements -------------- None Challenges ------------ None Game ------ Seed ProtonCarbideFlightbrick Manual? 0 Play Time 00:25:07 Cumulative 357.1 hours Start 2024.12.27 @ 21:53:27 End 2024.12.27 @ 22:17:34 Sessions 1 Manual Loads 0 Difficulty Rogue Special Mode None Game No. 147 Rogue 147 Adventurer 0 Explorer 0 Win Type - Total 12 Types 10/0/1/1/0/0/0/0/0 Lore% 58 Gallery% 76 Achievement% 67 Wizard Run 0 Options --------- Layout 0 ASCII 0 Keyboard 0 Movement Numpad Keybinds 0 Fullscreen 1 Font 24/Smallcaps Map View 76x50 Zoom Use 0% Tactical HUD 1 Map Filters NONE Filters NONE Steam 1 RUN: 2e64a3f1-ac66-44e9-8fb4-9b3e761fc7e3